fUST/lending_fUST_20250910
["ID","MTS","AMOUNT","RATE_DAILY","PERIOD"]
[384638156,1757491855663,-6383.17,0.000221,7]
[384638157,1757491855672,-775.48690183,0.00022149,2]
[384638158,1757491855682,-154.0,0.00022192,7]
[384638159,1757491855692,-603.73575278,0.000223,7]
[384638160,1757491855701,-14891.02261415,0.00022464,2]
[384638161,1757491855711,-1014.49592766,0.000225,2]
[384638162,1757491855721,-1000.0,0.000225,20]
[384638163,1757491855731,-492.0,0.000225,20]
[384638164,1757491855740,-4000.0,0.000225,4]
[384638165,1757491855749,-300.0,0.00022521,2]
[384638166,1757491855759,-61817.05981369,0.000228,2]
[384638167,1757491855768,-3000.0,0.00022808,2]
[384638168,1757491855778,-719.85,0.00022833,2]
[384638169,1757491855790,-14891.02261415,0.00022892,2]
[384638170,1757491855799,-2000.0,0.000229,2]
[384638171,1757491855808,-2000.0,0.000229,2]
[384638172,1757491855817,-2583.77,0.00023,2]
[384638173,1757491855827,-2006.45412611,0.00023,2]
[384638174,1757491855837,-20162.65614168,0.00023,2]
[384638175,1757491855846,-2951.37466975,0.00023,2]
[384638176,1757491855856,-160.0,0.00023,3]
[384638177,1757491855865,-160.0,0.00023,3]
[384638178,1757491855875,-160.0,0.00023,3]
[384638179,1757491855884,-200.0,0.00023,7]
[384638180,1757491855893,-846.88337432,0.00023,3]
[384638181,1757491855903,-233.08191698,0.00023,3]
[384638182,1757491855913,-160.0,0.00023,3]
[384638183,1757491855922,-217.67150996,0.00023,3]
[384638184,1757491855931,-154.0,0.00023014,7]
[384638185,1757491855941,-450.0,0.00023068,2]
[384638186,1757491855950,-409.0,0.00023114,2]
[384638187,1757491855959,-5534.7,0.000232,7]
[384638188,1757491855968,-3074.52,0.000232,7]
[384638189,1757491855978,-306.88178643,0.00023287,2]
[384638190,1757491855987,-402.36632722,0.00023287,2]
[384638191,1757491855996,-151.0,0.00023288,7]
[384638192,1757491856005,-151.0,0.00023288,7]
[384638193,1757491856015,-151.0,0.00023288,7]
[384638194,1757491856024,-14891.02261415,0.00023319,2]
[384638195,1757491856033,-91803.63,0.000234,7]
[384638196,1757491856042,-202.0,0.0002357,8]
[384638197,1757491856052,-6383.17,0.000236,7]
[384638198,1757491856061,-600.0,0.00023616,2]
[384638199,1757491856071,-719.85,0.00023666,2]
[384638200,1757491856080,-1000.0,0.00023695,5]
[384638201,1757491856089,-14891.02261415,0.00023747,2]
[384638202,1757491856098,-1070.4,0.000239,2]
[384638203,1757491856107,-1070.4,0.000239,2]
[384638204,1757491856117,-3000.0,0.00023904,2]
[384638205,1757491856126,-151.0,0.00023963,3]
[384638206,1757491856136,-151.0,0.00023963,3]
[384638207,1757491856145,-12267.65553158,0.00024,15]
[384638208,1757491856154,-160.0,0.00024,7]
[384638209,1757491856163,-160.0,0.00024,7]
[384638210,1757491856173,-10576.6745308,0.00024,7]
[384638211,1757491856182,-160.0,0.00024,7]
[384638212,1757491856192,-846.88337432,0.00024,7]
[384638213,1757491856201,-233.08191698,0.00024,7]
[384638214,1757491856211,-160.0,0.00024,7]
[384638215,1757491856220,-217.67150996,0.00024,7]
[384638216,1757491856230,-3628.50293754,0.00024064,2]
[384638217,1757491856239,-160.57800703,0.00024137,2]
[384638218,1757491856248,-750.0,0.00024164,2]
[384638219,1757491856257,-161.0,0.00024164,7]
[384638220,1757491856267,-14891.02261415,0.00024174,2]
[384638221,1757491856276,-775.48690183,0.00024287,2]
[384638222,1757491856285,-2050.23280844,0.00024399,2]
[384638223,1757491856295,-5534.7,0.000244,7]
[384638224,1757491856304,-800.0,0.00024459,2]
[384638225,1757491856314,-719.85,0.00024498,2]
[384638226,1757491856323,-3074.52,0.000245,7]
[384638227,1757491856332,-3628.50293752,0.00024564,2]
[384638228,1757491856341,-40320.22833555,0.000246,2]
[384638229,1757491856350,-14891.02261415,0.00024602,2]
[384638230,1757491856359,-74353.80384125,0.0002465,2]
[384638231,1757491856368,-505.91014282,0.0002465,2]
[384638232,1757491856377,-155.0,0.00024655,2]
[384638233,1757491856386,-198.24,0.00024657,2]
[384638234,1757491856395,-150.0,0.00024658,2]
[384638235,1757491856405,-150.0,0.00024658,2]
[384638236,1757491856414,-180.416052,0.00024658,7]
[384638237,1757491856424,-200.0,0.00024658,2]
[384638238,1757491856433,-151.0,0.00024658,7]
[384638239,1757491856442,-151.0,0.00024658,7]
[384638240,1757491856451,-151.0,0.00024658,7]
[384638241,1757491856460,-151.0,0.00024658,7]
[384638242,1757491856469,-151.0,0.00024658,7]
[384638243,1757491856478,-158.728209,0.00024658,7]
[384638244,1757491856487,-171.39525,0.00024658,7]
[384638245,1757491856496,-171.39525,0.00024658,7]
[384638246,1757491856505,-171.39525,0.00024658,7]
[384638247,1757491856514,-171.39525,0.00024658,7]
[384638248,1757491856523,-171.39525,0.00024658,7]
[384638249,1757491856533,-171.39525,0.00024658,7]
[384638250,1757491856542,-171.39525,0.00024658,7]
[384638251,1757491856551,-171.39525,0.00024658,7]
[384638252,1757491856560,-171.39525,0.00024658,7]
[384638253,1757491856569,-171.39525,0.00024658,7]
[384638254,1757491856579,-171.39525,0.00024658,7]
[384638255,1757491856588,-171.39525,0.00024658,7]
[384638256,1757491856597,-171.39525,0.00024658,7]
[384638257,1757491856606,-171.39525,0.00024658,7]
[384638258,1757491856616,-171.39525,0.00024658,7]
[384638259,1757491856625,-171.39525,0.00024658,7]
[384638260,1757491856635,-171.39525,0.00024658,7]
[384638261,1757491856644,-171.39525,0.00024658,7]
[384638262,1757491856653,-171.39525,0.00024658,7]
[384638263,1757491856663,-171.395244,0.00024658,7]
[384638264,1757491856672,-193.20992697,0.00024658,2]
[384638265,1757491856681,-200.0,0.00024658,15]
[384638266,1757491856691,-380.0,0.00024658,2]
[384638267,1757491856701,-577.0,0.00024658,2]
[384638268,1757491856710,-507.30961126,0.00024712,2]
[384638269,1757491856720,-4414.42409245,0.0002472,2]
[384638270,1757491856729,-1000.0,0.0002475,20]
[384638271,1757491856739,-791.0,0.0002475,20]
[384638272,1757491856955,-800.0,0.00024762,2]
[384638273,1757491856965,-16564.98198575,0.00024774,2]
[384638274,1757491856975,-1913.664856,0.0002478,5]
[384638275,1757491856984,-6383.17,0.000248,7]
[384638276,1757491856994,-91803.63,0.000248,7]
[384638277,1757491857003,-1000.0,0.000248,5]
[384638278,1757491857013,-1000.79784,0.000248,2]
[384638279,1757491857022,-1000.0,0.0002482,5]
[384638280,1757491857032,-160.0,0.00024825,3]
[384638281,1757491857042,-245.38958131,0.00024825,5]
[384638282,1757491857051,-1000.0,0.0002484,5]
[384638283,1757491857060,-1950.761138,0.0002486,5]
[384638284,1757491857069,-1000.0,0.0002486,5]
[384638285,1757491857078,-1000.0,0.0002488,5]
[384638286,1757491857087,-1000.0,0.0002488,5]
[384638287,1757491857097,-160.00588346,0.00024889,2]
[384638288,1757491857107,-800.0,0.00024896,2]
[384638289,1757491857117,-1000.0,0.000249,5]
[384638290,1757491857126,-1000.0,0.000249,5]
[384638291,1757491857136,-753561.256137,0.000249,2]
[384638292,1757491857146,-1000.0,0.0002492,5]
[384638293,1757491857155,-1000.0,0.0002492,5]
[384638294,1757491857165,-577.0,0.00024932,2]
[384638295,1757491857175,-1000.0,0.0002494,5]
[384638296,1757491857184,-1000.0,0.0002494,5]
[384638297,1757491857194,-1000.0,0.0002496,5]
[384638298,1757491857203,-1000.0,0.0002496,5]
[384638299,1757491857213,-1238.63433225,0.00024978,20]
[384638300,1757491857223,-1000.0,0.0002498,5]
[384638301,1757491857232,-1000.0,0.0002498,5]
[384638302,1757491857242,-1152.277476,0.0002498,5]
[384638303,1757491857251,-248.0,0.00024989,2]
[384638304,1757491857260,-1000.0,0.0002499,7]
[384638305,1757491857269,-2000.0,0.0002499,7]
[384638306,1757491857279,-416.21,0.0002499,7]
[384638307,1757491857288,-3000.0,0.00025,2]
[384638308,1757491857297,-1069.94326845,0.00025,2]
[384638309,1757491857307,-2635.16239864,0.00025,2]
[384638310,1757491857412,-208.91060447,0.00025,2]
[384638311,1757491857423,-10364.0,0.00025,2]
[384638312,1757491857432,-360.64562941,0.00025,2]
[384638313,1757491857441,-500.0,0.00025,2]
[384638314,1757491857450,-107429.85095843,0.00025,2]
[384638315,1757491857459,-600.0,0.00025,2]
[384638316,1757491857469,-99000.0,0.00025,15]
[384638317,1757491857478,-167.17,0.00025,14]
[384638318,1757491857487,-193.15440747,0.00025,2]
[384638319,1757491857496,-530.71506861,0.00025,3]
[384638320,1757491857505,-150.432025,0.00025,7]
[384638321,1757491857514,-1013.99804097,0.00025,10]
[384638322,1757491857524,-430.65,0.00025,5]
[384638323,1757491857534,-433.91059328,0.00025,14]
[384638324,1757491857543,-682499.27243125,0.00025,7]
[384638325,1757491857563,-1679.4758001,0.00025,7]
[384638326,1757491857574,-426.885,0.00025,7]
[384638327,1757491857584,-9072.35361306,0.00025,7]
[384638328,1757491857595,-1986.56089233,0.00025,7]
[384638329,1757491857606,-694.50938659,0.00025,7]
[384638330,1757491857617,-11221.34521516,0.00025,7]
[384638331,1757491857628,-1090.3460293,0.00025,7]
[384638332,1757491857639,-38081.46233634,0.00025,7]
[384638334,1757492023499,291.398,0.00025,30]
[384638335,1757492035132,250.0,0.00025,30]
[384638336,1757492042287,250.0,0.00025,30]
[384638337,1757492050079,250.0,0.00025,30]
[384638341,1757492320539,569844.2829,0.00025,30]
[384638347,1757492848114,-300.11623962,0.00013599,2]
[384638348,1757492848135,-1200.0,0.00013696,2]
[384638349,1757492848155,-300.0,0.00013697,2]
[384638350,1757492848177,-1200.0,0.00013697,2]
[384638351,1757492848198,-300.0,0.00013697,2]
[384638352,1757492848219,-486.44960878,0.00013698,2]
[384638353,1757492848239,-480.0,0.00013698,2]
[384638354,1757492848264,-480.0,0.00013698,2]
[384638355,1757492848285,-480.0,0.00013698,2]
[384638356,1757492848307,-480.0,0.00013698,2]
[384638357,1757492848326,-481.31280476,0.00013698,2]
[384638358,1757492848347,-165.71128889,0.00013698,2]
[384638359,1757492848368,-480.0,0.00013698,2]
[384638360,1757492848387,-463.823063,0.00013698,2]
[384638361,1757492848407,-480.0,0.00013698,2]
[384638362,1757492848428,-480.0,0.00013698,2]
[384638363,1757492848449,-480.0,0.00013698,2]
[384638364,1757492848469,-480.0,0.00013698,2]
[384638365,1757492848490,-480.0,0.00013698,2]
[384638366,1757492848510,-480.0,0.00013698,2]
[384638367,1757492848532,-480.0,0.00013698,2]
[384638368,1757492848552,-524.81091389,0.00013698,2]
[384638369,1757492848573,-480.0,0.00013698,2]
[384638370,1757492848595,-480.0,0.00013698,2]
[384638371,1757492848621,-480.0,0.00013698,2]
[384638372,1757492848643,-480.0,0.00013698,2]
[384638373,1757492848664,-480.0,0.00013698,2]
[384638374,1757492848685,-480.0,0.00013698,2]
[384638375,1757492848706,-480.0,0.00013698,2]
[384638376,1757492848728,-171.48115931,0.00013698,2]
[384638534,1757493032501,-262.60170965,0.00013599,2]
[384638537,1757493032511,-300.0,0.00013697,2]
[384638538,1757493032520,-480.0,0.00013698,2]
[384638541,1757493032530,-313.48471389,0.00013698,2]
[384638543,1757493032539,-606.4,0.00013698,2]
[384638545,1757493032548,-480.0,0.00013698,2]
[384638547,1757493032557,-480.0,0.00013698,2]
[384638549,1757493032566,-480.0,0.00013698,2]
[384638550,1757493032575,-576.44,0.00013698,2]
[384638552,1757493032584,-480.0,0.00013698,2]
[384638553,1757493032594,-480.0,0.00013698,2]
[384638554,1757493032603,-480.0,0.00013698,2]
[384638555,1757493032612,-480.0,0.00013698,2]
[384638556,1757493032621,-126.14420007,0.00013698,2]
[384638579,1757493038389,-353.85579993,0.00013698,2]
[384638580,1757493038399,-467.71501911,0.00013698,2]
[384638581,1757493038495,-138.94498089,0.00013698,2]
[384638582,1757493038505,-480.0,0.00013698,2]
[384638583,1757493038514,-480.0,0.00013698,2]
[384638584,1757493038525,-480.0,0.00013698,2]
[384638586,1757493038534,-480.0,0.00013698,2]
[384638587,1757493038543,-480.0,0.00013698,2]
[384638588,1757493038552,-445.59665747,0.00013698,2]
[384638590,1757493038561,-480.0,0.00013698,2]
[384638592,1757493038571,-480.0,0.00013698,2]
[384638593,1757493038580,-535.91501585,0.00013698,2]
[384638594,1757493038589,-242.47,0.00013698,2]
[384638595,1757493038599,-480.0,0.00013698,2]
[384638596,1757493038608,-480.0,0.00013698,2]
[384638597,1757493038617,-335.9362264,0.00013698,2]
[384638598,1757493038626,-480.0,0.00013698,2]
[384638599,1757493038636,-480.0,0.00013698,2]
[384638600,1757493038645,-480.0,0.00013698,2]
[384638601,1757493038795,-480.0,0.00013698,2]
[384638602,1757493038804,-480.0,0.00013698,2]
[384638603,1757493038814,-480.0,0.00013698,2]
[384638604,1757493038823,-480.0,0.00013698,2]
[384638605,1757493038833,-480.0,0.00013698,2]
[384638606,1757493038842,-480.0,0.00013698,2]
[384638607,1757493038852,-902.84670311,0.00013698,2]
[384638615,1757493040452,-234.00389146,0.00013698,2]
[384638616,1757493040461,-18946.53358661,0.00013698,2]
[384638630,1757493045031,-2662.12319119,0.00013698,2]
[384638631,1757493045042,-840.0,0.00013698,2]
[384638858,1757493473404,480.0,0.00013287,2]
[384638889,1757494044123,-229.77649597,0.00013462,2]
[384638890,1757494044145,-1200.0,0.00013693,2]
[384638891,1757494044168,-300.0,0.00013693,2]
[384638892,1757494044188,-1200.0,0.00013693,2]
[384638893,1757494044207,-2464.77321226,0.00013694,2]
[384638894,1757494044227,-300.0,0.00013694,2]
[384638895,1757494044246,-300.0,0.00013694,2]
[384638896,1757494044266,-300.0,0.00013694,2]
[384638897,1757494044286,-2449.31111867,0.00013697,2]
[384638969,1757494232709,-300.0,0.00013559,2]
[384638971,1757494232719,-300.0,0.00013559,2]
[384638973,1757494232729,-423.0,0.00013559,2]
[384638975,1757494232738,-3615.28059816,0.0001356,2]
[384638977,1757494232750,-828.01563795,0.0001356,2]
[384638979,1757494232761,-7305.60784605,0.0001356,2]
[384638981,1757494232771,-615.05403542,0.00013596,2]
[384638983,1757494232781,-729.77222366,0.00013598,2]
[384638985,1757494232791,-500.0,0.00013696,2]
[384638987,1757494232801,-500.0,0.00013696,2]
[384638989,1757494232811,-500.0,0.00013696,2]
[384638992,1757494232821,-377.69915331,0.00013696,2]
[384638994,1757494232830,-500.0,0.00013696,2]
[384638996,1757494232840,-500.0,0.00013696,2]
[384638997,1757494232855,-500.0,0.00013696,2]
[384638999,1757494232866,-500.0,0.00013696,2]
[384639001,1757494232875,-500.0,0.00013696,2]
[384639003,1757494232885,-500.0,0.00013696,2]
[384639005,1757494232895,-500.0,0.00013696,2]
[384639007,1757494232905,-500.0,0.00013696,2]
[384639023,1757494233046,-620.0,0.00013696,2]
[384639026,1757494233066,-500.0,0.00013696,2]
[384639028,1757494233076,-500.0,0.00013696,2]
[384639030,1757494233087,-500.0,0.00013696,2]
[384639032,1757494233096,-500.0,0.00013696,2]
[384639034,1757494233106,-500.0,0.00013696,2]
[384639036,1757494233116,-500.0,0.00013696,2]
[384639038,1757494233125,-500.0,0.00013696,2]
[384639040,1757494233135,-500.0,0.00013696,2]
[384639042,1757494233145,-500.0,0.00013696,2]
[384639044,1757494233154,-500.0,0.00013696,2]
[384639045,1757494233164,-500.0,0.00013696,2]
[384639047,1757494233173,-500.0,0.00013696,2]
[384639049,1757494233183,-500.0,0.00013696,2]
[384639051,1757494233192,-500.0,0.00013696,2]
[384639053,1757494233202,-500.0,0.00013696,2]
[384639055,1757494233212,-500.0,0.00013696,2]
[384639057,1757494233222,-500.0,0.00013696,2]
[384639059,1757494233231,-365.57292924,0.00013696,2]
[384639061,1757494233241,-500.0,0.00013696,2]
[384639063,1757494233250,-500.0,0.00013696,2]
[384639065,1757494233260,-332.17058919,0.00013696,2]
[384639067,1757494233269,-500.0,0.00013696,2]
[384639069,1757494233278,-417.20586742,0.00013696,2]
[384639071,1757494233287,-500.0,0.00013696,2]
[384639073,1757494233297,-500.0,0.00013696,2]
[384639075,1757494233306,-500.0,0.00013696,2]
[384639077,1757494233317,-500.0,0.00013696,2]
[384639079,1757494233325,-500.0,0.00013696,2]
[384639081,1757494233334,-500.0,0.00013696,2]
[384639083,1757494233344,-500.0,0.00013696,2]
[384639085,1757494233353,-500.0,0.00013696,2]
[384639087,1757494233363,-500.0,0.00013696,2]
[384639089,1757494233372,-500.0,0.00013696,2]
[384639090,1757494233387,-500.0,0.00013696,2]
[384639093,1757494233396,-500.0,0.00013696,2]
[384639094,1757494233406,-500.0,0.00013696,2]
[384639096,1757494233415,-500.0,0.00013696,2]
[384639098,1757494233424,-500.0,0.00013696,2]
[384639099,1757494233433,-500.0,0.00013696,2]
[384639100,1757494233443,-561.77103956,0.00013696,2]
[384639101,1757494233453,-500.0,0.00013696,2]
[384639102,1757494233462,-500.0,0.00013696,2]
[384639103,1757494233471,-500.0,0.00013696,2]
[384639104,1757494233481,-500.0,0.00013696,2]
[384639105,1757494233491,-500.0,0.00013696,2]
[384639106,1757494233500,-500.0,0.00013696,2]
[384639107,1757494233509,-500.0,0.00013696,2]
[384639108,1757494233519,-500.0,0.00013696,2]
[384639109,1757494233528,-500.0,0.00013696,2]
[384639110,1757494233538,-500.0,0.00013696,2]
[384639111,1757494233547,-500.0,0.00013696,2]
[384639112,1757494233556,-500.0,0.00013696,2]
[384639113,1757494233566,-500.0,0.00013696,2]
[384639114,1757494233575,-408.21933377,0.00013696,2]
[384639115,1757494233584,-500.0,0.00013696,2]
[384639116,1757494233594,-500.0,0.00013696,2]
[384639117,1757494233604,-500.0,0.00013696,2]
[384639118,1757494233614,-500.0,0.00013696,2]
[384639119,1757494233623,-58.52680881,0.00013696,2]
[384639120,1757494233636,-441.47319119,0.00013696,2]
[384639121,1757494233646,-500.0,0.00013696,2]
[384639122,1757494233656,-500.0,0.00013696,2]
[384639123,1757494233665,-250.12679881,0.00013696,2]
[384639124,1757494233677,-249.87320119,0.00013696,2]
[384639125,1757494233687,-14300.40054644,0.00013696,2]
[384639126,1757494233698,-24173.14059563,0.00013696,2]
[384639127,1757494233708,-13377.5255273,0.00013697,2]
[384639128,1757494233717,-480.0,0.00013698,2]
[384639129,1757494233726,-167.86,0.00013698,2]
[384639130,1757494233735,-480.0,0.00013698,2]
[384639131,1757494233745,-480.0,0.00013698,2]
[384639132,1757494233755,-480.0,0.00013698,2]
[384639133,1757494233764,-480.0,0.00013698,2]
[384639134,1757494233774,-480.0,0.00013698,2]
[384639135,1757494233784,-480.0,0.00013698,2]
[384639136,1757494233793,-480.0,0.00013698,2]
[384639137,1757494233805,-480.0,0.00013698,2]
[384639138,1757494233815,-480.0,0.00013698,2]
[384639139,1757494233825,-480.0,0.00013698,2]
[384639140,1757494233834,-480.0,0.00013698,2]
[384639141,1757494233844,-480.0,0.00013698,2]
[384639142,1757494233858,-480.0,0.00013698,2]
[384639143,1757494233868,-621.90786313,0.00013698,2]
[384639144,1757494233878,-480.0,0.00013698,2]
[384639145,1757494233888,-480.0,0.00013698,2]
[384639146,1757494233899,-480.0,0.00013698,2]
[384639147,1757494233908,-480.0,0.00013698,2]
[384639148,1757494233918,-480.0,0.00013698,2]
[384639149,1757494233928,-480.0,0.00013698,2]
[384639150,1757494233938,-480.0,0.00013698,2]
[384639151,1757494233948,-480.0,0.00013698,2]
[384639152,1757494233957,-480.0,0.00013698,2]
[384639153,1757494233967,-480.0,0.00013698,2]
[384639154,1757494233977,-480.0,0.00013698,2]
[384639155,1757494233987,-480.0,0.00013698,2]
[384639156,1757494233997,-480.0,0.00013698,2]
[384639157,1757494234006,-480.0,0.00013698,2]
[384639158,1757494234016,-480.0,0.00013698,2]
[384639159,1757494234026,-480.0,0.00013698,2]
[384639160,1757494234036,-480.0,0.00013698,2]
[384639161,1757494234047,-194.16379098,0.00013698,2]
[384639162,1757494234057,-199.68259436,0.00013698,2]
[384639163,1757494234067,-480.0,0.00013698,2]
[384639164,1757494234076,-480.0,0.00013698,2]
[384639165,1757494234086,-480.0,0.00013698,2]
[384639166,1757494234095,-480.0,0.00013698,2]
[384639167,1757494234104,-480.0,0.00013698,2]
[384639168,1757494234114,-575.14,0.00013698,2]
[384639169,1757494234128,-480.0,0.00013698,2]
[384639170,1757494234138,-480.0,0.00013698,2]
[384639171,1757494234147,-480.0,0.00013698,2]
[384639172,1757494234157,-480.0,0.00013698,2]
[384639173,1757494234167,-480.0,0.00013698,2]
[384639174,1757494234176,-480.0,0.00013698,2]
[384639175,1757494234185,-489.23486992,0.00013698,2]
[384639176,1757494234196,-480.0,0.00013698,2]
[384639177,1757494234206,-480.0,0.00013698,2]
[384639178,1757494234215,-480.0,0.00013698,2]
[384639179,1757494234225,-480.0,0.00013698,2]
[384639180,1757494234234,-278.99859969,0.00013698,2]
[384639181,1757494234243,-480.0,0.00013698,2]
[384639182,1757494234252,-201.19507156,0.00013698,2]
[384639183,1757494234262,-480.0,0.00013698,2]
[384639184,1757494234271,-480.0,0.00013698,2]
[384639185,1757494234282,-510.99289691,0.00013698,2]
[384639186,1757494234292,-480.0,0.00013698,2]
[384639187,1757494234301,-480.0,0.00013698,2]
[384639188,1757494234310,-485.09429888,0.00013698,2]
[384639189,1757494234320,-480.0,0.00013698,2]
[384639190,1757494234329,-480.0,0.00013698,2]
[384639191,1757494234338,-480.0,0.00013698,2]
[384639192,1757494234347,-480.0,0.00013698,2]
[384639193,1757494234357,-480.0,0.00013698,2]
[384639194,1757494234366,-480.0,0.00013698,2]
[384639195,1757494234377,-480.0,0.00013698,2]
[384639196,1757494234387,-480.0,0.00013698,2]
[384639197,1757494234397,-480.0,0.00013698,2]
[384639198,1757494234407,-481.00967701,0.00013698,2]
[384639199,1757494234418,-480.0,0.00013698,2]
[384639200,1757494234427,-480.0,0.00013698,2]
[384639201,1757494234438,-480.0,0.00013698,2]
[384639202,1757494234447,-480.0,0.00013698,2]
[384639203,1757494234456,-327.6887114,0.00013698,2]
[384639204,1757494234466,-480.0,0.00013698,2]
[384639205,1757494234476,-480.0,0.00013698,2]
[384639206,1757494234488,-559.93,0.00013698,2]
[384639207,1757494234499,-480.0,0.00013698,2]
[384639208,1757494234511,-647.19,0.00013698,2]
[384639209,1757494234520,-480.0,0.00013698,2]
[384639210,1757494234530,-480.0,0.00013698,2]
[384639211,1757494234539,-530.11145274,0.00013698,2]
[384639212,1757494234548,-591.817897,0.00013699,2]
[384639213,1757494234558,-896.84,0.0001397,2]
[384639214,1757494234567,-300.0,0.00013971,2]
[384639215,1757494234578,-300.0,0.00013971,2]
[384639216,1757494234588,-300.0,0.00013971,2]
[384639217,1757494234599,-300.0,0.00013971,2]
[384639218,1757494234609,-300.0,0.00013971,2]
[384639219,1757494234618,-300.0,0.00013971,2]
[384639220,1757494234628,-300.0,0.00013971,2]
[384639221,1757494234638,-300.0,0.00013971,2]
[384639222,1757494234649,-300.0,0.00013971,2]
[384639223,1757494234660,-300.0,0.00013971,2]
[384639224,1757494234670,-300.0,0.00013971,2]
[384639225,1757494234679,-300.0,0.00013971,2]
[384639226,1757494234688,-300.0,0.00013971,2]
[384639227,1757494234699,-300.0,0.00013971,2]
[384639228,1757494234708,-300.0,0.00013971,2]
[384639229,1757494234717,-272.69,0.00013972,2]
[384639230,1757494234726,-480.0,0.00013972,2]
[384639231,1757494234735,-542.48944768,0.00013972,2]
[384639232,1757494234744,-517.93457634,0.00013972,2]
[384639233,1757494234753,-480.0,0.00013972,2]
[384639234,1757494234763,-480.0,0.00013972,2]
[384639235,1757494234772,-480.0,0.00013972,2]
[384639236,1757494234781,-480.0,0.00013972,2]
[384639237,1757494234790,-480.0,0.00013972,2]
[384639238,1757494234799,-480.0,0.00013972,2]
[384639239,1757494234808,-480.0,0.00013972,2]
[384639240,1757494234818,-480.0,0.00013972,2]
[384639241,1757494234828,-480.0,0.00013972,2]
[384639242,1757494234839,-480.0,0.00013972,2]
[384639243,1757494234855,-480.0,0.00013972,2]
[384639244,1757494234865,-480.0,0.00013972,2]
[384639245,1757494234875,-480.0,0.00013972,2]
[384639246,1757494234886,-480.0,0.00013972,2]
[384639247,1757494234898,-480.0,0.00013972,2]
[384639248,1757494234908,-480.0,0.00013972,2]
[384639249,1757494234918,-231.18,0.00013972,2]
[384639250,1757494234928,-480.0,0.00013972,2]
[384639251,1757494234938,-480.0,0.00013972,2]
[384639252,1757494234947,-480.0,0.00013972,2]
[384639253,1757494234956,-480.0,0.00013972,2]
[384639254,1757494234965,-480.0,0.00013972,2]
[384639255,1757494234974,-480.0,0.00013972,2]
[384639256,1757494234983,-480.0,0.00013972,2]
[384639257,1757494234993,-647.19,0.00013972,2]
[384639258,1757494235002,-255.29,0.00013972,2]
[384639259,1757494235011,-480.0,0.00013972,2]
[384639260,1757494235021,-896.84,0.00014244,2]
[384639261,1757494235030,-480.0,0.00014246,2]
[384639262,1757494235039,-211.1,0.00014246,2]
[384639263,1757494235048,-480.0,0.00014246,2]
[384639264,1757494235057,-480.0,0.00014246,2]
[384639265,1757494235067,-577.1963065,0.00014246,2]
[384639266,1757494235077,-480.0,0.00014246,2]
[384639267,1757494235087,-480.0,0.00014246,2]
[384639268,1757494235097,-241.72189669,0.00014246,2]
[384639269,1757494235109,-238.27810331,0.00014246,2]
[384639270,1757494235119,-363.4855835,0.00014246,2]
[384639306,1757494238845,-116.5144165,0.00014246,2]
[384639308,1757494238856,-647.19,0.00014246,2]
[384639310,1757494238865,-364.52,0.00014246,2]